[Event "*** SCC Grand Prix: Titled Tuesday Blitz"]
[Site "Chess.com"]
[Date "2020.09.29"]
[Round "5"]
[White "Maghalashvili"]
[Black "Shield12"]
[Result "0-1"]
[WhiteElo "2711"]
[BlackElo "2862"]
[TimeControl "180+1"]
[EndTime "10:55:53 PDT"]
[Termination "Shield12 won by resignation"]

1. Nf3 {[%clk 0:02:49.4]} 1... c5 {[%clk 0:03:00.1]} 2. c4 {[%clk 0:02:46.9]}
2... Nc6 {[%clk 0:02:58.7]} 3. g3 {[%clk 0:02:41.3]} 3... g6 {[%clk 0:02:58.6]}
4. Bg2 {[%clk 0:02:32.6]} 4... Bg7 {[%clk 0:02:59]} 5. Nc3 {[%clk 0:02:32.4]}
5... Nf6 {[%clk 0:02:58.5]} 6. O-O {[%clk 0:02:31.6]} 6... d5 {[%clk 0:02:58.5]}
7. cxd5 {[%clk 0:02:30.9]} 7... Nxd5 {[%clk 0:02:59.4]} 8. d3 {[%clk 0:02:31.4]}
8... O-O {[%clk 0:02:59.1]} 9. Nxd5 {[%clk 0:02:30.6]} 9... Qxd5 {[%clk
0:03:00]} 10. Be3 {[%clk 0:02:31.1]} 10... Bd7 {[%clk 0:03:00.1]} 11. Nd4 {[%clk
0:02:15.3]} 11... Qd6 {[%clk 0:02:59.7]} 12. Nxc6 {[%clk 0:02:14.1]} 12... Bxc6
{[%clk 0:03:00.6]} 13. Bxc6 {[%clk 0:02:12.6]} 13... Qxc6 {[%clk 0:03:01.5]} 14.
Rc1 {[%clk 0:02:13]} 14... Qe6 {[%clk 0:03:01.7]} 15. Rxc5 {[%clk 0:01:56.6]}
15... Qxa2 {[%clk 0:03:01.4]} 16. Rb5 {[%clk 0:01:55.4]} 16... b6 {[%clk
0:03:01.7]} 17. Qa1 {[%clk 0:01:54.1]} 17... Qe6 {[%clk 0:03:01.5]} 18. Rc1
{[%clk 0:01:46.7]} 18... Qg4 {[%clk 0:02:57.4]} 19. Rc2 {[%clk 0:01:36.5]} 19...
h5 {[%clk 0:02:53]} 20. Qa3 {[%clk 0:01:19.1]} 20... Qd7 {[%clk 0:02:32.4]} 21.
Rb4 {[%clk 0:01:08.2]} 21... b5 {[%clk 0:02:32.4]} 22. Qa6 {[%clk 0:01:03.2]}
22... Rfb8 {[%clk 0:02:26.9]} 23. Rc5 {[%clk 0:00:50.4]} 23... Rb6 {[%clk
0:02:22.5]} 24. Qa5 {[%clk 0:00:48.8]} 24... Rab8 {[%clk 0:02:21]} 25. Rc2
{[%clk 0:00:41]} 25... R6b7 {[%clk 0:02:16.9]} 26. Qa6 {[%clk 0:00:40.5]} 26...
e6 {[%clk 0:02:06.1]} 27. Bf4 {[%clk 0:00:34.6]} 27... e5 {[%clk 0:02:05.7]} 28.
Be3 {[%clk 0:00:33.8]} 28... Bf8 {[%clk 0:02:02.9]} 29. Re4 {[%clk 0:00:22.5]}
29... Qd5 {[%clk 0:02:02.5]} 30. Qc6 {[%clk 0:00:21.8]} 30... Rd8 {[%clk
0:01:55.9]} 31. Qxd5 {[%clk 0:00:21]} 31... Rxd5 {[%clk 0:01:56.8]} 32. d4
{[%clk 0:00:17]} 32... Bg7 {[%clk 0:01:51.4]} 33. dxe5 {[%clk 0:00:16.8]} 33...
Bxe5 {[%clk 0:01:52.3]} 34. Bf4 {[%clk 0:00:16.5]} 34... Bf6 {[%clk 0:01:48.1]}
35. Re8+ {[%clk 0:00:15.5]} 35... Kg7 {[%clk 0:01:47.3]} 36. Ra8 {[%clk
0:00:13.3]} 36... b4 {[%clk 0:01:44.4]} 37. b3 {[%clk 0:00:10.8]} 37... Rd1+
{[%clk 0:01:42.9]} 38. Kg2 {[%clk 0:00:11]} 38... Rb1 {[%clk 0:01:43.8]} 39.
Rcc8 {[%clk 0:00:11.3]} 39... Kh7 {[%clk 0:01:39.9]} 40. Rc7 {[%clk 0:00:06.7]}
40... Rxc7 {[%clk 0:01:38.8]} 41. Bxc7 {[%clk 0:00:07.6]} 41... Rxb3 {[%clk
0:01:37.7]} 42. Rxa7 {[%clk 0:00:07.3]} 42... Rb2 {[%clk 0:01:31.6]} 43. Rb7
{[%clk 0:00:06.5]} 43... Bc3 {[%clk 0:01:26.4]} 44. Kf3 {[%clk 0:00:04.4]} 44...
g5 {[%clk 0:01:24.3]} 45. h3 {[%clk 0:00:04.1]} 45... Kg6 {[%clk 0:01:23.3]} 46.
g4 {[%clk 0:00:04.2]} 46... h4 {[%clk 0:01:22.8]} 47. Rb6+ {[%clk 0:00:03.9]}
47... f6 {[%clk 0:01:22.8]} 48. Bd8 {[%clk 0:00:04.1]} 48... Bd4 {[%clk
0:01:18.7]} 49. Rb7 {[%clk 0:00:03.8]} 49... Rb3+ {[%clk 0:01:15]} 50. e3 {[%clk
0:00:03.8]} 50... Bc3 {[%clk 0:01:15.2]} 51. Be7 {[%clk 0:00:04.3]} 51... Rb2
{[%clk 0:01:15]} 52. Bf8 {[%clk 0:00:04.2]} 52... f5 {[%clk 0:01:12.8]} 53. Rb6+
{[%clk 0:00:03.4]} 53... Kf7 {[%clk 0:01:12.8]} 54. Bc5 {[%clk 0:00:03.7]} 54...
fxg4+ {[%clk 0:01:12.9]} 55. hxg4 {[%clk 0:00:04]} 55... b3 {[%clk 0:01:09.4]}
56. Ke4 {[%clk 0:00:03.2]} 56... Rb1 {[%clk 0:01:06.3]} 57. Bd4 {[%clk
0:00:01.8]} 57... Bxd4 {[%clk 0:01:05.3]} 58. Kxd4 {[%clk 0:00:01.4]} 58... h3
{[%clk 0:00:57.3]} 59. Rh6 {[%clk 0:00:01.4]} 59... Rc1 {[%clk 0:00:54.2]} 60.
Rh7+ {[%clk 0:00:01.1]} 60... Kg6 {[%clk 0:00:53.8]} 61. Rxh3 {[%clk 0:00:02]}
61... b2 {[%clk 0:00:53.8]} 62. f4 {[%clk 0:00:02.4]} 62... b1=Q {[%clk
0:00:53.4]} 63. f5+ {[%clk 0:00:03.3]} 63... Kg7 {[%clk 0:00:53.7]} 0-1

[Event "*** SCC Grand Prix: Titled Tuesday Blitz"]
[Site "Chess.com"]
[Date "2020.09.29"]
[Round "5"]
[White "Rakesh"]
[Black "Gusarov91"]
[Result "1-0"]
[WhiteElo "2433"]
[BlackElo "2579"]
[TimeControl "180+1"]
[EndTime "10:55:53 PDT"]
[Termination "Rakesh won by resignation"]

1. e4 {[%clk 0:01:35.9]} 1... c5 {[%clk 0:02:56.4]} 2. c3 {[%clk 0:01:34.2]}
2... d5 {[%clk 0:02:55.7]} 3. exd5 {[%clk 0:01:34.2]} 3... Qxd5 {[%clk
0:02:56.4]} 4. d4 {[%clk 0:01:35.1]} 4... Nf6 {[%clk 0:02:50.4]} 5. Nf3 {[%clk
0:01:35.4]} 5... Bg4 {[%clk 0:02:50.5]} 6. dxc5 {[%clk 0:01:33.3]} 6... Qxd1+
{[%clk 0:02:47.6]} 7. Kxd1 {[%clk 0:01:34.2]} 7... e5 {[%clk 0:02:46.2]} 8. b4
{[%clk 0:01:31]} 8... Nc6 {[%clk 0:02:43.2]} 9. h3 {[%clk 0:01:25.1]} 9...
O-O-O+ {[%clk 0:02:42.5]} 10. Kc2 {[%clk 0:01:23.5]} 10... Bf5+ {[%clk
0:02:42.4]} 11. Kb2 {[%clk 0:01:16]} 11... Ne4 {[%clk 0:02:41.8]} 12. Be3 {[%clk
0:01:15.2]} 12... f6 {[%clk 0:02:31.8]} 13. Bc4 {[%clk 0:01:10.9]} 13... a5
{[%clk 0:02:27.3]} 14. a3 {[%clk 0:01:09]} 14... Be7 {[%clk 0:02:20.4]} 15. Nbd2
{[%clk 0:01:05.4]} 15... Nxd2 {[%clk 0:02:05.4]} 16. Nxd2 {[%clk 0:01:06.3]}
16... e4 {[%clk 0:01:55.8]} 17. Rhd1 {[%clk 0:00:54.1]} 17... Ne5 {[%clk
0:01:54.8]} 18. Bd4 {[%clk 0:00:50.5]} 18... Nd3+ {[%clk 0:01:46.9]} 19. Bxd3
{[%clk 0:00:50.3]} 19... exd3 {[%clk 0:01:46.7]} 20. Re1 {[%clk 0:00:45.1]}
20... Rhe8 {[%clk 0:01:44.4]} 21. g4 {[%clk 0:00:43.8]} 21... Bg6 {[%clk
0:01:43.7]} 22. f4 {[%clk 0:00:44.4]} 22... Bf8 {[%clk 0:01:34.1]} 23. f5 {[%clk
0:00:40.7]} 23... Bf7 {[%clk 0:01:33.3]} 24. Nb3 {[%clk 0:00:27.3]} 24... a4
{[%clk 0:01:29.5]} 25. Nd2 {[%clk 0:00:24.8]} 25... Re2 {[%clk 0:01:20.2]} 26.
Rxe2 {[%clk 0:00:24]} 26... dxe2 {[%clk 0:01:21.1]} 27. Re1 {[%clk 0:00:24.1]}
27... Re8 {[%clk 0:01:21.3]} 28. Kc2 {[%clk 0:00:22.7]} 28... Kc7 {[%clk
0:01:14.9]} 29. Kd3 {[%clk 0:00:22.4]} 29... Kc6 {[%clk 0:01:05]} 30. Rxe2
{[%clk 0:00:21.6]} 30... Rd8 {[%clk 0:01:05.4]} 31. Nc4 {[%clk 0:00:16.1]} 31...
Kb5 {[%clk 0:01:01.5]} 32. Nd2 {[%clk 0:00:11.8]} 32... g6 {[%clk 0:00:55.5]}
33. c4+ {[%clk 0:00:11.3]} 33... Kc6 {[%clk 0:00:54.6]} 34. Kc3 {[%clk
0:00:11.7]} 34... gxf5 {[%clk 0:00:53.8]} 35. gxf5 {[%clk 0:00:11.8]} 35... Bh6
{[%clk 0:00:50.8]} 36. b5+ {[%clk 0:00:10.2]} 36... Kc7 {[%clk 0:00:50.2]} 37.
Ne4 {[%clk 0:00:10.7]} 37... Re8 {[%clk 0:00:44.5]} 38. Bxf6 {[%clk 0:00:09.9]}
38... Bh5 {[%clk 0:00:39.3]} 39. Re1 {[%clk 0:00:10.1]} 39... Bf3 {[%clk
0:00:34]} 40. Kd4 {[%clk 0:00:09.5]} 40... Rf8 {[%clk 0:00:27.4]} 41. Be5+
{[%clk 0:00:09.6]} 41... Kd8 {[%clk 0:00:25.9]} 42. Nd6 {[%clk 0:00:10.5]} 42...
Bd2 {[%clk 0:00:21.1]} 43. Rf1 {[%clk 0:00:10.9]} 43... Bg2 {[%clk 0:00:20.9]}
44. Rf2 {[%clk 0:00:10.9]} 44... Bc1 {[%clk 0:00:13.4]} 45. Rxg2 {[%clk
0:00:10.5]} 45... Bxa3 {[%clk 0:00:13.6]} 46. Nxb7+ {[%clk 0:00:08.2]} 46... Kc8
{[%clk 0:00:13.7]} 47. Nd6+ {[%clk 0:00:08.1]} 47... Kd8 {[%clk 0:00:14.3]} 48.
Rg7 {[%clk 0:00:08.3]} 48... Bb2+ {[%clk 0:00:13]} 49. Kd5 {[%clk 0:00:08.7]}
49... Bxe5 {[%clk 0:00:13.1]} 50. Kxe5 {[%clk 0:00:09.2]} 50... a3 {[%clk
0:00:13.7]} 51. Ke6 {[%clk 0:00:07.8]} 51... Rf6+ {[%clk 0:00:10.3]} 52. Kxf6
{[%clk 0:00:07.9]} 52... a2 {[%clk 0:00:10.9]} 53. Ke6 {[%clk 0:00:08.2]} 1-0

[Event "*** SCC Grand Prix: Titled Tuesday Blitz"]
[Site "Chess.com"]
[Date "2020.09.29"]
[Round "5"]
[White "PauloCesarCosta_sad"]
[Black "stolencandy13"]
[Result "0-1"]
[WhiteElo "2306"]
[BlackElo "2467"]
[TimeControl "180+1"]
[EndTime "10:55:53 PDT"]
[Termination "stolencandy13 won by checkmate"]

1. Nf3 {[%clk 0:03:00.9]} 1... d5 {[%clk 0:02:57.8]} 2. d4 {[%clk 0:02:59.5]}
2... Nf6 {[%clk 0:02:57.3]} 3. c4 {[%clk 0:02:59.9]} 3... c6 {[%clk 0:02:57.4]}
4. e3 {[%clk 0:02:58]} 4... e6 {[%clk 0:02:57.8]} 5. Nbd2 {[%clk 0:02:56.9]}
5... Nbd7 {[%clk 0:02:58.2]} 6. Bd3 {[%clk 0:02:57.2]} 6... Be7 {[%clk
0:02:58.7]} 7. O-O {[%clk 0:02:57.6]} 7... O-O {[%clk 0:02:59.4]} 8. e4 {[%clk
0:02:57.3]} 8... dxe4 {[%clk 0:02:55.7]} 9. Nxe4 {[%clk 0:02:54.1]} 9... Nxe4
{[%clk 0:02:56.2]} 10. Bxe4 {[%clk 0:02:55]} 10... Nf6 {[%clk 0:02:56.8]} 11.
Bc2 {[%clk 0:02:54.9]} 11... b6 {[%clk 0:02:57.3]} 12. Qd3 {[%clk 0:02:12.9]}
12... Bb7 {[%clk 0:02:49.3]} 13. Bg5 {[%clk 0:02:05.8]} 13... g6 {[%clk
0:02:49.1]} 14. Ne5 {[%clk 0:01:55.4]} 14... c5 {[%clk 0:02:46.4]} 15. dxc5
{[%clk 0:01:34.9]} 15... Qxd3 {[%clk 0:02:38.4]} 16. Bxd3 {[%clk 0:01:33.9]}
16... bxc5 {[%clk 0:02:20.9]} 17. Ng4 {[%clk 0:01:22.7]} 17... Nd5 {[%clk
0:01:43.3]} 18. cxd5 {[%clk 0:01:05.1]} 18... Bxg5 {[%clk 0:01:42.5]} 19. dxe6
{[%clk 0:01:03]} 19... fxe6 {[%clk 0:01:42.2]} 20. Bc4 {[%clk 0:00:50.7]} 20...
Bd5 {[%clk 0:01:37.5]} 21. Bb3 {[%clk 0:00:28]} 21... c4 {[%clk 0:01:28.9]} 22.
Bc2 {[%clk 0:00:24.8]} 22... Rab8 {[%clk 0:01:28.9]} 23. b3 {[%clk 0:00:22.3]}
23... Kg7 {[%clk 0:01:19.8]} 24. Ne3 {[%clk 0:00:20]} 24... Bxe3 {[%clk
0:01:16.8]} 25. fxe3 {[%clk 0:00:20.9]} 25... Rxf1+ {[%clk 0:01:16.7]} 26. Kxf1
{[%clk 0:00:20.3]} 26... Rf8+ {[%clk 0:01:06.6]} 27. Kg1 {[%clk 0:00:19.8]}
27... c3 {[%clk 0:01:04]} 28. Rf1 {[%clk 0:00:18.3]} 28... Rc8 {[%clk
0:00:56.6]} 29. e4 {[%clk 0:00:16.9]} 29... Bc6 {[%clk 0:00:51.4]} 30. Kf2
{[%clk 0:00:17]} 30... Kf6 {[%clk 0:00:51]} 31. Ke3+ {[%clk 0:00:17]} 31... Ke7
{[%clk 0:00:48.7]} 32. Kd4 {[%clk 0:00:16.4]} 32... Bb5 {[%clk 0:00:41.5]} 33.
Rf2 {[%clk 0:00:15.9]} 33... Rc7 {[%clk 0:00:26.3]} 34. a4 {[%clk 0:00:15.4]}
34... Ba6 {[%clk 0:00:26]} 35. Rf3 {[%clk 0:00:14.3]} 35... Rd7+ {[%clk
0:00:23.4]} 36. Ke3 {[%clk 0:00:13.7]} 36... Bb7 {[%clk 0:00:22.9]} 37. Ke2
{[%clk 0:00:08.9]} 37... Rc7 {[%clk 0:00:21.7]} 38. Rd3 {[%clk 0:00:08.4]} 38...
Ba6 {[%clk 0:00:21]} 39. Ke3 {[%clk 0:00:05.3]} 39... Bxd3 {[%clk 0:00:21.1]}
40. Kxd3 {[%clk 0:00:06.2]} 40... e5 {[%clk 0:00:22]} 41. b4 {[%clk 0:00:05.5]}
41... Kd6 {[%clk 0:00:22.2]} 42. b5 {[%clk 0:00:05.8]} 42... g5 {[%clk
0:00:19.5]} 43. g4 {[%clk 0:00:06.1]} 43... h6 {[%clk 0:00:19.5]} 44. h3 {[%clk
0:00:06.6]} 44... Kc5 {[%clk 0:00:19.3]} 45. Kxc3 {[%clk 0:00:06.7]} 45... Rf7
{[%clk 0:00:19.8]} 46. Bd3 {[%clk 0:00:05.9]} 46... Rf3 {[%clk 0:00:19.8]} 47.
Kd2 {[%clk 0:00:05.5]} 47... Rxh3 {[%clk 0:00:20]} 48. Be2 {[%clk 0:00:05.3]}
48... Ra3 {[%clk 0:00:19.7]} 49. Bd1 {[%clk 0:00:03.9]} 49... Kd4 {[%clk
0:00:19.7]} 50. Ke1 {[%clk 0:00:03.2]} 50... Ra2 {[%clk 0:00:19]} 51. Bb3 {[%clk
0:00:02.4]} 51... Rb2 {[%clk 0:00:19]} 52. Bd1 {[%clk 0:00:02.3]} 52... Kxe4
{[%clk 0:00:19.1]} 53. a5 {[%clk 0:00:02.1]} 53... Rxb5 {[%clk 0:00:18.7]} 54.
a6 {[%clk 0:00:02.3]} 54... Rb2 {[%clk 0:00:18.5]} 55. Bc2+ {[%clk 0:00:03.2]}
55... Rxc2 {[%clk 0:00:17.9]} 56. Kd1 {[%clk 0:00:04.1]} 56... Ra2 {[%clk
0:00:17.1]} 57. Ke1 {[%clk 0:00:05]} 57... Kd3 {[%clk 0:00:17.3]} 58. Kd1 {[%clk
0:00:05.9]} 58... Ra1# {[%clk 0:00:17.4]} 0-1

[Event "*** SCC Grand Prix: Titled Tuesday Blitz"]
[Site "Chess.com"]
[Date "2020.09.29"]
[Round "5"]
[White "theblitzchamp"]
[Black "Chuchofrio1"]
[Result "1-0"]
[WhiteElo "2627"]
[BlackElo "2398"]
[TimeControl "180+1"]
[EndTime "10:55:54 PDT"]
[Termination "theblitzchamp won on time"]

1. e4 {[%clk 0:03:00.9]} 1... c5 {[%clk 0:02:59.1]} 2. Nf3 {[%clk 0:03:00.6]}
2... e6 {[%clk 0:02:59.3]} 3. d4 {[%clk 0:03:01.5]} 3... cxd4 {[%clk 0:02:59.3]}
4. Nxd4 {[%clk 0:03:02.4]} 4... Nf6 {[%clk 0:02:59.7]} 5. Nc3 {[%clk 0:03:00.7]}
5... Nc6 {[%clk 0:03:00.2]} 6. Be2 {[%clk 0:02:59.5]} 6... d6 {[%clk 0:02:58.8]}
7. Be3 {[%clk 0:02:56.3]} 7... Be7 {[%clk 0:02:58.5]} 8. f4 {[%clk 0:02:54.3]}
8... O-O {[%clk 0:02:57.8]} 9. Bf3 {[%clk 0:02:54.2]} 9... e5 {[%clk 0:02:55]}
10. fxe5 {[%clk 0:02:50.9]} 10... dxe5 {[%clk 0:02:51.1]} 11. Nf5 {[%clk
0:02:49.9]} 11... Bxf5 {[%clk 0:02:49.7]} 12. exf5 {[%clk 0:02:50.8]} 12... Qa5
{[%clk 0:02:42.6]} 13. O-O {[%clk 0:02:49.3]} 13... Bc5 {[%clk 0:02:37.1]} 14.
Qe1 {[%clk 0:02:47.2]} 14... Nd4 {[%clk 0:02:28.9]} 15. Bd1 {[%clk 0:02:19.3]}
15... Ng4 {[%clk 0:02:02.2]} 16. Bxg4 {[%clk 0:02:10]} 16... Nxc2 {[%clk
0:02:00.9]} 17. Bxc5 {[%clk 0:02:10.1]} 17... Nxe1 {[%clk 0:01:57.7]} 18. Bxf8
{[%clk 0:02:09.5]} 18... Nc2 {[%clk 0:01:38]} 19. Be7 {[%clk 0:01:18.9]} 19...
Nxa1 {[%clk 0:01:34.8]} 20. Rxa1 {[%clk 0:01:18.6]} 20... Qb6+ {[%clk
0:01:34.7]} 21. Kh1 {[%clk 0:01:16.5]} 21... Qxb2 {[%clk 0:01:34.5]} 22. Rb1
{[%clk 0:01:16.4]} 22... Qxc3 {[%clk 0:01:33.2]} 23. f6 {[%clk 0:01:17]} 23...
Qc2 {[%clk 0:01:07.4]} 24. Rd1 {[%clk 0:01:05.1]} 24... gxf6 {[%clk 0:01:01.4]}
25. h3 {[%clk 0:01:00.5]} 25... f5 {[%clk 0:00:59.7]} 26. Bh5 {[%clk 0:00:59.8]}
26... e4 {[%clk 0:00:57.7]} 27. Bg5 {[%clk 0:00:58.1]} 27... Kg7 {[%clk
0:00:39.1]} 28. Rd6 {[%clk 0:00:52.7]} 28... Qxa2 {[%clk 0:00:27.9]} 29. Bf6+
{[%clk 0:00:43.5]} 29... Kg8 {[%clk 0:00:26.1]} 30. Bd4 {[%clk 0:00:38]} 30...
f4 {[%clk 0:00:23.1]} 31. Rf6 {[%clk 0:00:37.3]} 31... e3 {[%clk 0:00:19.9]} 32.
Rxf4 {[%clk 0:00:35.4]} 32... e2 {[%clk 0:00:19.1]} 33. Rg4+ {[%clk 0:00:35.5]}
33... Kf8 {[%clk 0:00:18.5]} 34. Bg7+ {[%clk 0:00:31.5]} 34... Ke7 {[%clk
0:00:16.3]} 35. Re4+ {[%clk 0:00:32.4]} 35... Kd6 {[%clk 0:00:11.6]} 36. Rxe2
{[%clk 0:00:33.3]} 36... Qb1+ {[%clk 0:00:11.4]} 37. Kh2 {[%clk 0:00:32.8]}
37... Rc8 {[%clk 0:00:11.1]} 38. Rd2+ {[%clk 0:00:32.1]} 38... Kc7 {[%clk
0:00:10.2]} 39. Be5+ {[%clk 0:00:31.8]} 39... Kb6 {[%clk 0:00:10.4]} 40. Bf3
{[%clk 0:00:31.8]} 40... Rc2 {[%clk 0:00:09.2]} 41. Rd7 {[%clk 0:00:27.3]} 41...
Qa2 {[%clk 0:00:06.7]} 42. Rxb7+ {[%clk 0:00:26]} 42... Ka6 {[%clk 0:00:06.8]}
43. Rb8 {[%clk 0:00:23]} 43... Rc5 {[%clk 0:00:04.6]} 44. Bd4 {[%clk 0:00:20.5]}
44... Rc7 {[%clk 0:00:03.9]} 45. Be5 {[%clk 0:00:16.3]} 45... Re7 {[%clk
0:00:02.3]} 46. Bg3 {[%clk 0:00:15]} 46... Ka5 {[%clk 0:00:02.1]} 47. Bh4 {[%clk
0:00:12.4]} 47... Rd7 {[%clk 0:00:01.7]} 48. Be1+ {[%clk 0:00:12.1]} 1-0

[Event "*** SCC Grand Prix: Titled Tuesday Blitz"]
[Site "Chess.com"]
[Date "2020.09.29"]
[Round "5"]
[White "tteshan"]
[Black "karinachess1"]
[Result "1-0"]
[WhiteElo "2375"]
[BlackElo "2497"]
[TimeControl "180+1"]
[EndTime "10:55:55 PDT"]
[Termination "tteshan won by resignation"]

1. e4 {[%clk 0:03:00.9]} 1... c5 {[%clk 0:02:58.7]} 2. Nf3 {[%clk 0:03:00.7]}
2... e6 {[%clk 0:02:58.4]} 3. d4 {[%clk 0:03:00.2]} 3... cxd4 {[%clk 0:02:59.3]}
4. Nxd4 {[%clk 0:03:01.1]} 4... a6 {[%clk 0:02:59.7]} 5. c4 {[%clk 0:03:01.1]}
5... Nf6 {[%clk 0:02:59]} 6. Nc3 {[%clk 0:03:01.4]} 6... Bb4 {[%clk 0:02:57.4]}
7. Qd3 {[%clk 0:03:01.3]} 7... Qc7 {[%clk 0:02:57.7]} 8. f3 {[%clk 0:02:59.5]}
8... Nc6 {[%clk 0:02:55.1]} 9. Nxc6 {[%clk 0:02:58.2]} 9... dxc6 {[%clk
0:02:52]} 10. Be3 {[%clk 0:02:58.1]} 10... O-O {[%clk 0:02:48.5]} 11. Be2 {[%clk
0:02:58.2]} 11... e5 {[%clk 0:02:40.9]} 12. O-O {[%clk 0:02:57.8]} 12... Rd8
{[%clk 0:02:36.5]} 13. Qc2 {[%clk 0:02:57.9]} 13... Bxc3 {[%clk 0:01:56]} 14.
Qxc3 {[%clk 0:02:56.3]} 14... h6 {[%clk 0:01:52.1]} 15. Rfd1 {[%clk 0:02:56]}
15... Be6 {[%clk 0:01:51.7]} 16. Bf2 {[%clk 0:02:49.1]} 16... Nh5 {[%clk
0:01:45.4]} 17. Qb3 {[%clk 0:02:30]} 17... c5 {[%clk 0:01:44.3]} 18. a4 {[%clk
0:02:26.9]} 18... Nf4 {[%clk 0:01:43.5]} 19. Bf1 {[%clk 0:02:26.3]} 19... Qe7
{[%clk 0:01:34.6]} 20. Qb6 {[%clk 0:02:24]} 20... Rdc8 {[%clk 0:01:16.3]} 21.
Rd6 {[%clk 0:02:19]} 21... Qc7 {[%clk 0:01:00.2]} 22. Rad1 {[%clk 0:02:11.3]}
22... Qxb6 {[%clk 0:00:56.5]} 23. Rxb6 {[%clk 0:02:12.2]} 23... Rc7 {[%clk
0:00:57.1]} 24. g3 {[%clk 0:02:12.2]} 24... Ng6 {[%clk 0:00:56.2]} 25. Be3
{[%clk 0:02:07.9]} 25... Ne7 {[%clk 0:00:46.7]} 26. f4 {[%clk 0:02:07.8]} 26...
Bg4 {[%clk 0:00:27.4]} 27. Rd2 {[%clk 0:02:05.4]} 27... f6 {[%clk 0:00:27.5]}
28. a5 {[%clk 0:01:48.5]} 28... Kf8 {[%clk 0:00:24.8]} 29. Bd3 {[%clk
0:01:41.6]} 29... Rd8 {[%clk 0:00:22.8]} 30. Bc2 {[%clk 0:01:41.7]} 30... Rxd2
{[%clk 0:00:22.6]} 31. Bxd2 {[%clk 0:01:42.6]} 31... Nc8 {[%clk 0:00:20.9]} 32.
Rb3 {[%clk 0:01:40.6]} 32... Nd6 {[%clk 0:00:20.8]} 33. Bd3 {[%clk 0:01:38.5]}
33... Be6 {[%clk 0:00:20.6]} 34. Rc3 {[%clk 0:01:38]} 34... Rd7 {[%clk
0:00:20.9]} 35. Kf2 {[%clk 0:01:37]} 35... Nxe4+ {[%clk 0:00:18.6]} 36. Bxe4
{[%clk 0:01:36.5]} 36... Rxd2+ {[%clk 0:00:19.5]} 37. Ke3 {[%clk 0:01:35.5]}
37... Rxb2 {[%clk 0:00:20.4]} 38. fxe5 {[%clk 0:01:35.5]} 38... fxe5 {[%clk
0:00:20.5]} 39. Rd3 {[%clk 0:01:33.4]} 39... Ke7 {[%clk 0:00:20.8]} 40. Bd5
{[%clk 0:01:31.4]} 40... Rb4 {[%clk 0:00:20.4]} 41. Ke4 {[%clk 0:01:31]} 41...
Bxd5+ {[%clk 0:00:20.2]} 42. Kxd5 {[%clk 0:01:31.9]} 42... e4 {[%clk 0:00:20]}
43. Re3 {[%clk 0:01:30.8]} 43... Kf6 {[%clk 0:00:18.2]} 44. Kxc5 {[%clk
0:01:29.3]} 44... Ra4 {[%clk 0:00:17.3]} 45. Rxe4 {[%clk 0:01:29.7]} 45... Rxa5+
{[%clk 0:00:17.6]} 46. Kb6 {[%clk 0:01:30]} 46... Ra1 {[%clk 0:00:16.2]} 47.
Kxb7 {[%clk 0:01:29.1]} 47... a5 {[%clk 0:00:16.7]} 48. c5 {[%clk 0:01:29.2]}
48... Rb1+ {[%clk 0:00:14.2]} 49. Ka6 {[%clk 0:01:28.4]} 49... Rc1 {[%clk
0:00:13.7]} 50. Kb6 {[%clk 0:01:27.9]} 50... Kf5 {[%clk 0:00:12.7]} 51. Rf4+
{[%clk 0:01:26.9]} 51... Ke5 {[%clk 0:00:12.5]} 52. c6 {[%clk 0:01:27.7]} 52...
Kd6 {[%clk 0:00:12.9]} 53. Rd4+ {[%clk 0:01:27.6]} 53... Ke7 {[%clk 0:00:12.6]}
54. Rd2 {[%clk 0:01:27.6]} 54... a4 {[%clk 0:00:12.6]} 55. c7 {[%clk 0:01:27.5]}
55... a3 {[%clk 0:00:12.2]} 56. Kb7 {[%clk 0:01:27.9]} 56... Rb1+ {[%clk
0:00:10]} 57. Kc8 {[%clk 0:01:16.9]} 57... Rb2 {[%clk 0:00:08.5]} 58. Rd7+
{[%clk 0:01:07.4]} 58... Ke6 {[%clk 0:00:08.3]} 59. Kd8 {[%clk 0:01:06.6]} 59...
Rc2 {[%clk 0:00:07.5]} 60. c8=Q {[%clk 0:01:06.2]} 60... Rxc8+ {[%clk
0:00:07.4]} 61. Kxc8 {[%clk 0:01:07.1]} 61... a2 {[%clk 0:00:07]} 62. Ra7 {[%clk
0:01:07.4]} 62... Kf5 {[%clk 0:00:06.4]} 63. Rxa2 {[%clk 0:01:06.6]} 63... g5
{[%clk 0:00:06.6]} 64. Kd7 {[%clk 0:01:06]} 64... h5 {[%clk 0:00:06.3]} 65. Kd6
{[%clk 0:01:05.7]} 65... Kg4 {[%clk 0:00:06.2]} 66. Ke5 {[%clk 0:01:05.6]} 66...
h4 {[%clk 0:00:05.8]} 67. gxh4 {[%clk 0:01:05.8]} 67... gxh4 {[%clk 0:00:06.7]}
68. Ke4 {[%clk 0:01:04.1]} 68... Kh3 {[%clk 0:00:07.2]} 69. Re2 {[%clk
0:00:55.6]} 69... Kg4 {[%clk 0:00:06.9]} 70. Ke3 {[%clk 0:00:55.8]} 70... Kh3
{[%clk 0:00:07.1]} 71. Rd2 {[%clk 0:00:54.6]} 71... Kg4 {[%clk 0:00:07.3]} 72.
Kf2 {[%clk 0:00:55]} 72... Kh3 {[%clk 0:00:07.7]} 73. Kg1 {[%clk 0:00:55.9]}
73... Kg4 {[%clk 0:00:07.9]} 74. Kg2 {[%clk 0:00:56]} 1-0